fUSD/lending_fUSD_20250820
["ID","MTS","AMOUNT","RATE_DAILY","PERIOD"]
[380383849,1755720642603,-151.0,0.000248,7]
[380383851,1755720642613,-151.0,0.000248,7]
[380383853,1755720642623,-151.0,0.000248,7]
[380383854,1755720642632,-151.0,0.000248,7]
[380383856,1755720642641,-151.0,0.000248,7]
[380383858,1755720642650,-151.0,0.000248,7]
[380383859,1755720642659,-151.0,0.000248,7]
[380383861,1755720642670,-207.792879,0.000248,7]
[380383863,1755720642679,-159.758689,0.000248,7]
[380383865,1755720642689,-151.0,0.000248,7]
[380383866,1755720642698,-151.0,0.000248,7]
[380383868,1755720642708,-151.0,0.000248,7]
[380383870,1755720642718,-151.0,0.000248,7]
[380383872,1755720642727,-151.0,0.000248,7]
[380383873,1755720642737,-183.914964,0.000248,7]
[380383875,1755720642746,-2815.866478,0.000248,7]
[380383877,1755720642759,-183.914964,0.000248,7]
[380383878,1755720642768,-151.0,0.000248,7]
[380383880,1755720642777,-2815.866478,0.000248,7]
[380383882,1755720642787,-183.914964,0.000248,7]
[380383884,1755720642797,-2815.866478,0.000248,7]
[380383885,1755720642806,-183.914964,0.000248,7]
[380383887,1755720642817,-197.20837,0.000248,7]
[380383889,1755720642827,-151.0,0.000248,7]
[380383890,1755720642837,-151.0,0.000248,7]
[380383892,1755720642846,-2815.866478,0.000248,7]
[380383894,1755720642857,-197.20837,0.000248,7]
[380383896,1755720642866,-197.20837,0.000248,7]
[380383897,1755720642875,-151.0,0.000248,7]
[380383899,1755720642885,-197.20837,0.000248,7]
[380383901,1755720642895,-151.0,0.000248,7]
[380383902,1755720642904,-151.0,0.000248,7]
[380383904,1755720642913,-151.0,0.000248,7]
[380383906,1755720642923,-151.0,0.000248,7]
[380383908,1755720642932,-151.0,0.000248,7]
[380383909,1755720642941,-151.0,0.000248,7]
[380383911,1755720642951,-181.072234,0.000248,7]
[380383913,1755720642961,-157.958321,0.000248,7]
[380383914,1755720642970,-151.0,0.000248,7]
[380383916,1755720642979,-181.072234,0.000248,7]
[380383918,1755720642989,-151.0,0.000248,7]
[380383920,1755720642998,-181.072234,0.000248,7]
[380383921,1755720643008,-181.072234,0.000248,7]
[380383923,1755720643017,-151.0,0.000248,7]
[380383925,1755720643027,-151.0,0.000248,7]
[380383927,1755720643036,-204.225555,0.000248,7]
[380383928,1755720643046,-151.0,0.000248,7]
[380383930,1755720643056,-151.0,0.000248,7]
[380383932,1755720643067,-151.0,0.000248,7]
[380383933,1755720643076,-204.225555,0.000248,7]
[380383935,1755720643085,-151.0,0.000248,7]
[380383937,1755720643094,-151.0,0.000248,7]
[380383939,1755720643104,-151.0,0.000248,7]
[380383941,1755720643113,-204.225555,0.000248,7]
[380383943,1755720643123,-151.0,0.000248,7]
[380383944,1755720643133,-204.225555,0.000248,7]
[380383945,1755720643143,-151.0,0.000248,7]
[380383946,1755720643153,-151.0,0.000248,7]
[380383947,1755720643162,-151.0,0.000248,7]
[380383948,1755720643172,-400.0,0.0002487,2]
[380383949,1755720643181,-400.0,0.0002487,2]
[380383950,1755720643191,-400.0,0.0002487,2]
[380383952,1755720643201,-400.0,0.0002487,2]
[380383953,1755720643210,-798.85,0.00024879,2]
[380383954,1755720643219,-2000.0,0.00024899,2]
[380383955,1755720643229,-217.0,0.000249,2]
[380383956,1755720643238,-216.0,0.000249,2]
[380383958,1755720643248,-250000.0,0.000249,2]
[380383959,1755720643258,-216.0,0.000249,2]
[380383961,1755720643267,-151.0,0.000249,3]
[380383963,1755720643276,-150.0,0.000249,2]
[380383965,1755720643286,-499.89584616,0.000249,2]
[380383967,1755720643295,-183.05574061,0.000249,2]
[380383969,1755720643304,-150.0,0.000249,2]
[380383971,1755720643315,-1297.8387451,0.000249,2]
[380383973,1755720643324,-150.0,0.000249,2]
[380383975,1755720643334,-837.51912167,0.000249,2]
[380383977,1755720643343,-150.0,0.000249,2]
[380383979,1755720643353,-1579.82003362,0.000249,2]
[380383981,1755720643362,-151.0,0.000249,7]
[380383983,1755720643372,-151.0,0.000249,7]
[380383985,1755720643381,-151.0,0.000249,7]
[380383988,1755720643391,-151.0,0.000249,7]
[380383989,1755720643400,-152.307233,0.000249,7]
[380383991,1755720643410,-151.0,0.000249,7]
[380383993,1755720643419,-151.0,0.000249,7]
[380383995,1755720643429,-151.186818,0.000249,7]
[380383998,1755720643439,-151.0,0.000249,7]
[380384000,1755720643449,-151.0,0.000249,7]
[380384002,1755720643458,-151.0,0.000249,7]
[380384004,1755720643468,-151.0,0.000249,7]
[380384006,1755720643477,-151.0,0.000249,7]
[380384008,1755720643486,-247.85332,0.000249,7]
[380384010,1755720643495,-151.0,0.000249,7]
[380384012,1755720643504,-151.0,0.000249,7]
[380384014,1755720643514,-151.0,0.000249,7]
[380384016,1755720643523,-240.864153,0.000249,7]
[380384018,1755720643534,-151.0,0.000249,7]
[380384020,1755720643543,-151.0,0.000249,7]
[380384022,1755720643553,-151.0,0.000249,7]
[380384024,1755720643564,-151.0,0.000249,7]
[380384026,1755720643576,-151.0,0.000249,7]
[380384028,1755720643586,-151.0,0.000249,7]
[380384030,1755720643595,-151.0,0.000249,7]
[380384032,1755720643604,-151.0,0.000249,7]
[380384034,1755720643614,-151.0,0.000249,7]
[380384036,1755720643623,-260.681708,0.000249,7]
[380384038,1755720643633,-151.0,0.000249,7]
[380384040,1755720643642,-151.0,0.000249,7]
[380384042,1755720643652,-151.631978,0.000249,7]
[380384044,1755720643661,-151.0,0.000249,7]
[380384047,1755720643671,-151.0,0.000249,7]
[380384049,1755720643681,-151.0,0.000249,7]
[380384051,1755720643690,-151.0,0.000249,7]
[380384053,1755720643699,-151.0,0.000249,7]
[380384055,1755720643709,-151.0,0.000249,7]
[380384057,1755720643719,-151.0,0.000249,7]
[380384059,1755720643728,-151.0,0.000249,7]
[380384061,1755720643738,-151.0,0.000249,7]
[380384063,1755720643748,-151.0,0.000249,7]
[380384065,1755720643762,-151.0,0.000249,7]
[380384067,1755720643771,-151.0,0.000249,7]
[380384069,1755720643781,-151.0,0.000249,7]
[380384071,1755720643791,-151.0,0.000249,7]
[380384073,1755720643800,-151.0,0.000249,7]
[380384075,1755720643810,-151.0,0.000249,7]
[380384077,1755720643820,-151.0,0.000249,7]
[380384079,1755720643829,-253.635476,0.000249,7]
[380384081,1755720643839,-151.0,0.000249,7]
[380384083,1755720643848,-253.635476,0.000249,7]
[380384085,1755720643857,-151.0,0.000249,7]
[380384087,1755720643867,-253.635476,0.000249,7]
[380384089,1755720643876,-253.635476,0.000249,7]
[380384091,1755720643886,-151.0,0.000249,7]
[380384093,1755720643896,-151.0,0.000249,7]
[380384095,1755720643906,-151.0,0.000249,7]
[380384097,1755720643915,-553.763521,0.000249,7]
[380384099,1755720643925,-151.0,0.000249,7]
[380384101,1755720643934,-553.763521,0.000249,7]
[380384103,1755720643944,-151.0,0.000249,7]
[380384105,1755720643953,-553.763521,0.000249,7]
[380384107,1755720643962,-553.763521,0.000249,7]
[380384109,1755720643972,-151.0,0.000249,7]
[380384111,1755720643981,-151.0,0.000249,7]
[380384113,1755720643991,-151.0,0.000249,7]
[380384115,1755720644000,-151.0,0.000249,7]
[380384117,1755720644009,-151.0,0.000249,7]
[380384119,1755720644017,-262.807716,0.000249,7]
[380384121,1755720644024,-151.0,0.000249,7]
[380384123,1755720644032,-151.0,0.000249,7]
[380384125,1755720644042,-243.35496,0.000249,7]
[380384127,1755720644052,-151.0,0.000249,7]
[380384129,1755720644060,-151.0,0.000249,7]
[380384131,1755720644069,-151.0,0.000249,7]
[380384134,1755720644078,-151.0,0.000249,7]
[380384136,1755720644088,-151.0,0.000249,7]
[380384138,1755720644097,-151.0,0.000249,7]
[380384140,1755720644108,-151.0,0.000249,7]
[380384142,1755720644117,-151.0,0.000249,7]
[380384144,1755720644126,-151.0,0.000249,7]
[380384146,1755720644136,-151.0,0.000249,7]
[380384148,1755720644143,-151.0,0.000249,7]
[380384150,1755720644152,-151.0,0.000249,7]
[380384152,1755720644161,-151.0,0.000249,7]
[380384154,1755720644170,-151.0,0.000249,7]
[380384157,1755720644179,-151.0,0.000249,7]
[380384159,1755720644189,-151.0,0.000249,7]
[380384161,1755720644196,-151.0,0.000249,7]
[380384163,1755720644205,-151.0,0.000249,7]
[380384165,1755720644212,-151.0,0.000249,7]
[380384167,1755720644222,-151.0,0.000249,7]
[380384169,1755720644229,-151.0,0.000249,7]
[380384170,1755720644237,-151.0,0.000249,7]
[380384216,1755720644678,-151.0,0.000249,7]
[380384218,1755720644689,-151.0,0.000249,7]
[380384220,1755720644698,-151.0,0.000249,7]
[380384222,1755720644707,-151.0,0.000249,7]
[380384224,1755720644717,-151.0,0.000249,7]
[380384226,1755720644727,-151.0,0.000249,7]
[380384228,1755720644737,-168.225096,0.000249,7]
[380384230,1755720644747,-151.0,0.000249,7]
[380384233,1755720644761,-151.0,0.000249,7]
[380384235,1755720644770,-151.0,0.000249,7]
[380384237,1755720644780,-151.0,0.000249,7]
[380384239,1755720644790,-151.0,0.000249,7]
[380384241,1755720644801,-151.0,0.000249,7]
[380384243,1755720644811,-151.0,0.000249,7]
[380384245,1755720644824,-151.0,0.000249,7]
[380384247,1755720644835,-151.0,0.000249,7]
[380384249,1755720644845,-151.0,0.000249,7]
[380384251,1755720644854,-151.0,0.000249,7]
[380384253,1755720644864,-168.225096,0.000249,7]
[380384255,1755720644874,-151.0,0.000249,7]
[380384257,1755720644883,-243.188832,0.000249,7]
[380384259,1755720644893,-151.0,0.000249,7]
[380384261,1755720644903,-168.225096,0.000249,7]
[380384263,1755720644913,-151.0,0.000249,7]
[380384265,1755720644922,-168.225096,0.000249,7]
[380384267,1755720644931,-151.0,0.000249,7]
[380384269,1755720644941,-151.0,0.000249,7]
[380384271,1755720644950,-151.0,0.000249,7]
[380384273,1755720644959,-151.0,0.000249,7]
[380384275,1755720644969,-165.394592,0.000249,7]
[380384277,1755720644978,-165.394592,0.000249,7]
[380384279,1755720644988,-151.0,0.000249,7]
[380384281,1755720644997,-151.0,0.000249,7]
[380384283,1755720645007,-165.394592,0.000249,7]
[380384285,1755720645016,-151.0,0.000249,7]
[380384287,1755720645026,-165.394592,0.000249,7]
[380384288,1755720645036,-251.228384,0.000249,7]
[380384289,1755720645045,-151.0,0.000249,7]
[380384290,1755720645055,-151.0,0.000249,7]
[380384291,1755720645067,-151.0,0.000249,7]
[380384292,1755720645077,-151.0,0.000249,7]
[380384293,1755720645087,-151.0,0.000249,7]
[380384294,1755720645096,-299.113088,0.000249,7]
[380384295,1755720645106,-422.429676,0.000249,7]
[380384297,1755720645116,-151.0,0.000249,7]
[380384299,1755720645126,-151.0,0.000249,7]
[380384301,1755720645135,-422.429676,0.000249,7]
[380384303,1755720645146,-151.0,0.000249,7]
[380384305,1755720645156,-422.429676,0.000249,7]
[380384307,1755720645166,-179.2604,0.000249,7]
[380384309,1755720645176,-151.0,0.000249,7]
[380384311,1755720645185,-151.0,0.000249,7]
[380384313,1755720645195,-422.429676,0.000249,7]
[380384315,1755720645205,-179.2604,0.000249,7]
[380384317,1755720645214,-151.0,0.000249,7]
[380384319,1755720645224,-151.0,0.000249,7]
[380384321,1755720645234,-151.0,0.000249,7]
[380384323,1755720645243,-179.2604,0.000249,7]
[380384325,1755720645253,-179.2604,0.000249,7]
[380384327,1755720645263,-151.0,0.000249,7]
[380384329,1755720645272,-151.0,0.000249,7]
[380384331,1755720645282,-151.0,0.000249,7]
[380384333,1755720645292,-151.0,0.000249,7]
[380384335,1755720645301,-168.048287,0.000249,7]
[380384337,1755720645311,-534.693519,0.000249,7]
[380384339,1755720645322,-534.693519,0.000249,7]
[380384341,1755720645332,-534.693519,0.000249,7]
[380384343,1755720645342,-168.048287,0.000249,7]
[380384345,1755720645352,-534.693519,0.000249,7]
[380384347,1755720645361,-168.048287,0.000249,7]
[380384349,1755720645370,-168.048287,0.000249,7]
[380384352,1755720645380,-151.0,0.000249,7]
[380384355,1755720645389,-151.0,0.000249,7]
[380384358,1755720645398,-151.0,0.000249,7]
[380384361,1755720645408,-151.0,0.000249,7]
[380384364,1755720645417,-151.0,0.000249,7]
[380384366,1755720645426,-151.0,0.000249,7]
[380384368,1755720645435,-151.0,0.000249,7]
[380384370,1755720645446,-151.0,0.000249,7]
[380384372,1755720645455,-151.0,0.000249,7]
[380384375,1755720645465,-151.0,0.000249,7]
[380384378,1755720645475,-151.0,0.000249,7]
[380384382,1755720645484,-151.0,0.000249,7]
[380384384,1755720645493,-151.0,0.000249,7]
[380384386,1755720645503,-245.082016,0.000249,7]
[380384388,1755720645512,-151.0,0.000249,7]
[380384390,1755720645522,-151.0,0.000249,7]
[380384392,1755720645531,-151.0,0.000249,7]
[380384394,1755720645540,-151.0,0.000249,7]
[380384396,1755720645551,-151.0,0.000249,7]
[380384398,1755720645561,-151.0,0.000249,7]
[380384400,1755720645573,-828.958501,0.000249,7]
[380384402,1755720645583,-165.112307,0.000249,7]
[380384404,1755720645592,-491468.542179,0.000249,2]
[380384406,1755720645601,-828.958501,0.000249,7]
[380384408,1755720645611,-165.112307,0.000249,7]
[380384410,1755720645620,-828.958501,0.000249,7]
[380384412,1755720645630,-165.112307,0.000249,7]
[380384414,1755720645640,-151.0,0.000249,7]
[380384416,1755720645649,-151.0,0.000249,7]
[380384419,1755720645659,-828.958501,0.000249,7]
[380384421,1755720645669,-165.112307,0.000249,7]
[380384423,1755720645678,-151.0,0.000249,7]
[380384425,1755720645688,-151.0,0.000249,7]
[380384427,1755720645696,-151.0,0.000249,7]
[380384429,1755720645705,-151.0,0.000249,7]
[380384431,1755720645714,-151.0,0.000249,7]
[380384433,1755720645724,-151.0,0.000249,7]
[380384435,1755720645733,-151.0,0.000249,7]
[380384437,1755720645743,-151.0,0.000249,7]
[380384439,1755720645756,-151.0,0.000249,7]
[380384441,1755720645765,-151.0,0.000249,7]
[380384443,1755720645774,-151.0,0.000249,7]
[380384445,1755720645784,-151.0,0.000249,7]
[380384447,1755720645794,-151.0,0.000249,7]
[380384449,1755720645803,-151.0,0.000249,7]
[380384451,1755720645813,-251.525272,0.000249,7]
[380384453,1755720645825,-251.525272,0.000249,7]
[380384455,1755720645835,-251.525272,0.000249,7]
[380384457,1755720645844,-251.525272,0.000249,7]
[380384459,1755720645854,-151.0,0.000249,7]
[380384461,1755720645863,-151.0,0.000249,7]
[380384463,1755720645872,-151.0,0.000249,7]
[380384465,1755720645881,-151.0,0.000249,7]
[380384467,1755720645890,-151.0,0.000249,7]
[380384469,1755720645900,-56623.7409952,0.000249,2]
[380384471,1755720645910,-151.0,0.000249,7]
[380384473,1755720645920,-151.0,0.000249,7]
[380384475,1755720645930,-151.0,0.000249,7]
[380384477,1755720645939,-151.0,0.000249,7]
[380384479,1755720645949,-151.0,0.000249,7]
[380384481,1755720645958,-151.0,0.000249,7]
[380384483,1755720645968,-151.0,0.000249,7]
[380384485,1755720645977,-300.09338,0.000249,7]
[380384487,1755720645986,-151.0,0.000249,7]
[380384489,1755720645996,-183.914964,0.000249,7]
[380384492,1755720646006,-2815.866478,0.000249,7]
[380384494,1755720646016,-183.914964,0.000249,7]
[380384496,1755720646025,-151.0,0.000249,7]
[380384498,1755720646036,-2815.866478,0.000249,7]
[380384500,1755720646046,-183.914964,0.000249,7]
[380384502,1755720646056,-2815.866478,0.000249,7]
[380384504,1755720646068,-183.914964,0.000249,7]
[380384506,1755720646078,-197.20837,0.000249,7]
[380384508,1755720646088,-151.0,0.000249,7]
[380384510,1755720646098,-2815.866478,0.000249,7]
[380384512,1755720646108,-151.0,0.000249,7]
[380384514,1755720646117,-197.20837,0.000249,7]
[380384516,1755720646128,-197.20837,0.000249,7]
[380384518,1755720646138,-197.20837,0.000249,7]
[380384520,1755720646148,-151.0,0.000249,7]
[380384523,1755720646158,-151.0,0.000249,7]
[380384526,1755720646167,-151.0,0.000249,7]
[380384528,1755720646177,-151.0,0.000249,7]
[380384530,1755720646187,-151.0,0.000249,7]
[380384532,1755720646196,-181.072234,0.000249,7]
[380384534,1755720646206,-151.0,0.000249,7]
[380384536,1755720646215,-181.072234,0.000249,7]
[380384538,1755720646224,-151.0,0.000249,7]
[380384540,1755720646234,-181.072234,0.000249,7]
[380384543,1755720646243,-181.072234,0.000249,7]
[380384545,1755720646253,-151.0,0.000249,7]
[380384547,1755720646262,-151.0,0.000249,7]
[380384549,1755720646272,-204.225555,0.000249,7]
[380384551,1755720646281,-151.0,0.000249,7]
[380384553,1755720646290,-204.225555,0.000249,7]
[380384555,1755720646299,-151.0,0.000249,7]
[380384557,1755720646309,-264.299822,0.000249,7]
[380384559,1755720646323,-204.225555,0.000249,7]
[380384561,1755720646333,-151.0,0.000249,7]
[380384563,1755720646343,-204.225555,0.000249,7]
[380384565,1755720646352,-166.30724,0.000249,7]
[380384567,1755720646361,-175.0,0.00024909,2]
[380384569,1755720646371,-216.0,0.0002493,30]
[380384571,1755720646380,-165.0,0.00024932,7]
[380384573,1755720646389,-159.0,0.00024932,7]
[380384575,1755720646399,-495.0,0.00024932,7]
[380384577,1755720646409,-741.0,0.00024932,2]
[380384579,1755720646418,-500.0,0.00024932,2]
[380384581,1755720646428,-500.0,0.00024932,2]
[380384583,1755720646438,-500.0,0.00024932,2]
[380384585,1755720646448,-500.0,0.00024932,2]
[380384587,1755720646458,-936.591142,0.00024934,2]
[380384589,1755720646468,-1500.0,0.00024973,2]
[380384591,1755720646477,-229.05412339,0.00024984,2]
[380384593,1755720646487,-1000.0,0.00024989,2]
[380384595,1755720646496,-2000.0,0.0002499,30]
[380384597,1755720646506,-5100.0,0.0002499,20]
[380384600,1755720646516,-5100.0,0.0002499,12]
[380384602,1755720646525,-1194.85826733,0.0002499,3]
[380384604,1755720646535,-1744.00532137,0.00025,2]
[380384606,1755720646545,-2974.1944643,0.00025,2]
[380384608,1755720646555,-1039.96385381,0.00025,2]
[380384610,1755720646564,-1000.0,0.00025,7]
[380384612,1755720646574,-1278.13943372,0.00025,4]
[380384614,1755720646583,-300.0,0.00025,2]
[380384616,1755720646592,-300.0,0.00025,2]
[380384618,1755720646602,-202.81274997,0.00025,2]
[380384620,1755720646611,-163.47362432,0.00025,2]
[380384622,1755720646620,-300.0,0.00025,2]
[380384624,1755720646630,-300.0,0.00025,2]
[380384626,1755720646639,-300.0,0.00025,2]
[380384628,1755720646648,-500.0,0.00025,5]
[380384630,1755720646657,-10907.34421426,0.00025,15]
[380384632,1755720646667,-25887.89412414,0.00025,2]
[380384634,1755720646677,-500.75490201,0.00025,2]
[380384636,1755720646686,-300.0,0.00025,25]
[380384638,1755720646695,-100000.0,0.00025,3]
[380384640,1755720646704,-34695.501314,0.00025,10]
[380384642,1755720646714,-300.0,0.00025,2]
[380384644,1755720646723,-300.0,0.00025,2]
[380384646,1755720646732,-300.0,0.00025,2]
[380384648,1755720646742,-300.0,0.00025,2]
[380384650,1755720646753,-3600.0,0.00025,26]
[380384652,1755720646765,-3160.78618842,0.00025,2]
[380384653,1755720646775,-2000.0,0.00025,30]
[380384654,1755720646784,-1169.13759127,0.00025,30]
[380384655,1755720646795,-342.599999,0.00025,2]
[380384656,1755720646805,-57832.513604,0.00025,10]
[380384657,1755720646814,-253.34010133,0.00025,2]
[380384658,1755720646825,-200.0,0.00025,18]
[380384659,1755720646835,-25000.0,0.00025,4]
[380384660,1755720646844,-250.0,0.00025,7]
[380384662,1755720646854,-253.8,0.00025,2]
[380384664,1755720646863,-160.6,0.00025,7]
[380384666,1755720646872,-292.53222067,0.00025,2]
[380384668,1755720646881,-180.0,0.00025,30]
[380384670,1755720646891,-4686.48582333,0.00025,2]
[380384672,1755720646900,-3008.89305828,0.00025,2]
[380384674,1755720646910,-213.12,0.00025,7]
[380384676,1755720646919,-843.97594471,0.00025,3]
[380384678,1755720646928,-843.97594471,0.00025,3]
[380384680,1755720646938,-165.0,0.00025,7]
[380384682,1755720646947,-4580.0,0.00025,5]
[380384684,1755720646957,-458.46930693,0.00025,3]
[380384686,1755720646966,-458.46930693,0.00025,10]
[380384688,1755720646975,-159.0,0.00025,7]
[380384690,1755720646985,-495.0,0.00025,7]
[380384692,1755720646994,-150.0,0.00025,2]
[380384694,1755720647004,-150.0,0.00025,2]
[380384696,1755720647014,-150.0,0.00025,2]
[380384698,1755720647024,-150.0,0.00025,2]
[380384717,1755720647190,-150.0,0.00025,2]
[380384719,1755720647200,-150.0,0.00025,2]
[380384721,1755720647209,-212.04014818,0.00025,3]
[380384723,1755720647218,-150.0,0.00025,2]
[380384725,1755720647228,-150.0,0.00025,2]
[380384727,1755720647237,-150.0,0.00025,2]
[380384729,1755720647247,-150.0,0.00025,2]
[380384731,1755720647256,-150.0,0.00025,2]
[380384733,1755720647265,-150.0,0.00025,2]
[380384735,1755720647275,-175.0,0.00025007,2]
[380384737,1755720647284,-15000.0,0.0002501,2]
[380384739,1755720647293,-600.0,0.00025014,2]
[380384741,1755720647303,-1000.0,0.00025021,2]
[380384743,1755720647312,-1000.0,0.00025021,2]
[380384745,1755720647322,-1000.0,0.00025021,2]
[380384747,1755720647331,-1000.0,0.00025021,2]
[380384749,1755720647340,-1000.0,0.00025021,2]
[380384751,1755720647350,-1000.0,0.00025021,2]
[380384753,1755720647359,-1000.0,0.00025021,2]
[380384755,1755720647368,-1000.0,0.00025021,2]
[380384757,1755720647377,-1000.0,0.00025021,2]
[380384759,1755720647386,-1000.0,0.00025021,2]
[380384761,1755720647396,-1000.0,0.00025021,2]
[380384763,1755720647406,-1000.0,0.00025021,2]
[380384765,1755720647415,-1000.0,0.00025021,2]
[380384767,1755720647425,-200.0,0.00025026,2]
[380384769,1755720647434,-175.0,0.0002507,2]
[380384771,1755720647443,-1700.65863318,0.000251,30]
[380384773,1755720647453,-175.0,0.00025125,2]
[380384775,1755720647462,-394.0,0.00025131,7]
[380384777,1755720647471,-426.0,0.00025131,7]
[380384779,1755720647480,-1321.0,0.00025131,7]
[380384781,1755720647489,-152.0,0.0002514,3]
[380384783,1755720647498,-800.0,0.00025174,2]
[380384785,1755720647508,-600.0,0.00025174,2]
[380384787,1755720647517,-150.0,0.00025179,30]
[380384789,1755720647526,-6260.34,0.000252,7]
[380384791,1755720647535,-495.0,0.00025205,7]
[380384793,1755720647544,-741.0,0.00025206,2]
[380384795,1755720647553,-500.0,0.00025206,2]
[380384797,1755720647562,-500.0,0.00025206,2]
[380384799,1755720647572,-500.0,0.00025206,2]
[380384801,1755720647581,-500.0,0.00025206,2]
[380384803,1755720647591,-1969.4404997,0.00025225,2]
[380384805,1755720647600,-5628.19,0.00025246,7]
[380384807,1755720647609,-5628.19,0.00025246,7]
[380384808,1755720647618,-5628.19,0.00025246,7]
[380384810,1755720647627,-5628.19,0.00025246,7]
[380384812,1755720647636,-2969.0,0.00025252,2]
[380384815,1755720647645,-200.0,0.00025276,2]
[380384816,1755720647654,-150.0,0.00025277,2]
[380384818,1755720647663,-150.46,0.00025305,2]
[380384820,1755720647673,-150.0,0.00025305,2]
[380384822,1755720647682,-166.0,0.00025305,2]
[380384824,1755720647691,-911.43,0.00025305,2]
[380384826,1755720647700,-1000.0,0.00025314,2]
[380384828,1755720647709,-394.0,0.00025315,7]
[380384830,1755720647718,-426.0,0.00025315,7]
[380384832,1755720647727,-173.56,0.00025315,2]
[380384834,1755720647736,-150.0,0.00025315,2]
[380384836,1755720647745,-166.0,0.00025315,2]
[380384838,1755720647756,-536.56,0.00025315,2]
[380384840,1755720647765,-408.32,0.00025315,2]
[380384842,1755720647774,-936.591142,0.00025328,2]
[380384844,1755720647783,-186.91,0.00025342,2]
[380384846,1755720647792,-1323.0,0.00025373,7]
[380384848,1755720647802,-219.0,0.0002538,2]
[380384850,1755720647811,-168.0,0.00025383,2]
[380384852,1755720647821,-359.76179104,0.00025393,2]
[380384854,1755720647831,-309.29654756,0.00025393,2]
[380384856,1755720647841,-2969.0,0.00025403,2]
[380384858,1755720647850,-774.14062056,0.00025405,2]
[380384860,1755720647859,-2234.0,0.00025417,2]
[380384862,1755720647868,-175.0,0.00025419,2]
[380384864,1755720647878,-1987.4222102,0.00025462,2]
[380384866,1755720647887,-1349.4901342,0.00025466,2]
[380384868,1755720647896,-150.0,0.00025477,2]
[380384870,1755720647905,-1000.0,0.00025478,2]
[380384872,1755720647914,-495.0,0.00025479,7]
[380384874,1755720647923,-741.0,0.0002548,2]
[380384876,1755720647932,-500.0,0.0002548,2]
[380384878,1755720647941,-500.0,0.0002548,2]
[380384880,1755720647951,-500.0,0.0002548,2]
[380384882,1755720647960,-500.0,0.0002548,2]
[380384884,1755720647969,-475.55070484,0.00025483,2]